fUSD/lending_fUSD_20250623
["ID","MTS","AMOUNT","RATE_DAILY","PERIOD"]
[367171646,1750686632967,-1000.0,0.0002355,2]
[367171647,1750686632976,-500.0,0.0002355,2]
[367171648,1750686632985,-151.0,0.0002355,2]
[367171649,1750686632995,-500.0,0.0002355,2]
[367171650,1750686633005,-151.0,0.0002355,2]
[367171651,1750686633015,-1000.0,0.0002355,2]
[367171652,1750686633024,-500.0,0.0002355,2]
[367171653,1750686633034,-151.0,0.0002355,2]
[367171654,1750686633044,-1000.0,0.0002355,2]
[367171655,1750686633053,-151.0,0.0002355,2]
[367171656,1750686633063,-1000.0,0.0002355,2]
[367171657,1750686633076,-1000.0,0.0002355,2]
[367171658,1750686633085,-1000.0,0.0002355,2]
[367171659,1750686633094,-151.0,0.0002355,2]
[367171660,1750686633104,-1000.0,0.0002355,2]
[367171661,1750686633113,-500.0,0.0002355,2]
[367171662,1750686633123,-151.0,0.0002355,2]
[367171663,1750686633132,-1000.0,0.0002355,2]
[367171664,1750686633141,-500.0,0.0002355,2]
[367171665,1750686633151,-151.0,0.0002355,2]
[367171666,1750686633160,-1000.0,0.0002355,2]
[367171667,1750686633170,-500.0,0.0002355,2]
[367171668,1750686633179,-151.0,0.0002355,2]
[367171669,1750686633189,-1000.0,0.0002355,2]
[367171670,1750686633199,-500.0,0.0002355,2]
[367171671,1750686633209,-151.0,0.0002355,2]
[367171672,1750686633219,-500.0,0.0002355,2]
[367171673,1750686633467,-151.0,0.0002355,2]
[367171674,1750686633478,-500.0,0.0002355,2]
[367171675,1750686633488,-151.0,0.0002355,2]
[367171676,1750686633498,-500.0,0.0002355,2]
[367171677,1750686633508,-151.0,0.0002355,2]
[367171678,1750686633518,-500.0,0.0002355,2]
[367171679,1750686633527,-151.0,0.0002355,2]
[367171680,1750686633537,-500.0,0.0002355,2]
[367171681,1750686633547,-500.0,0.0002355,2]
[367171682,1750686633557,-151.0,0.0002355,2]
[367171683,1750686633567,-258.04411858,0.0002355,2]
[367171684,1750686633581,-500.0,0.0002355,2]
[367171685,1750686633590,-500.0,0.0002355,2]
[367171686,1750686633600,-500.0,0.0002355,2]
[367171687,1750686633610,-500.0,0.0002355,2]
[367171688,1750686633619,-151.0,0.0002355,2]
[367171689,1750686633629,-500.0,0.0002355,2]
[367171690,1750686633638,-500.0,0.0002355,2]
[367171691,1750686633649,-500.0,0.0002355,2]
[367171692,1750686633659,-500.0,0.0002355,2]
[367171693,1750686633669,-500.0,0.0002355,2]
[367171694,1750686633679,-500.0,0.0002355,2]
[367171695,1750686633688,-500.0,0.0002355,2]
[367171696,1750686633699,-500.0,0.0002355,2]
[367171697,1750686633710,-3978.030243,0.00023605,2]
[367171698,1750686633719,-151.82,0.0002361,2]
[367171699,1750686633728,-151.82,0.00023625,2]
[367171700,1750686633738,-243.0,0.0002363,2]
[367171701,1750686633747,-151.82,0.0002364,2]
[367171702,1750686633758,-1896.0,0.0002364,2]
[367171703,1750686633768,-151.82,0.00023654,2]
[367171704,1750686633778,-151.82,0.00023669,2]
[367171705,1750686633788,-151.82,0.00023684,2]
[367171706,1750686633798,-151.82,0.00023699,2]
[367171707,1750686633808,-1494.0,0.000237,2]
[367171708,1750686633818,-587.0,0.00023712,2]
[367171709,1750686633831,-151.82,0.00023714,2]
[367171710,1750686633842,-151.82,0.00023728,2]
[367171711,1750686633852,-186.34,0.00023836,2]
[367171712,1750686633862,-203.0,0.00023836,7]
[367171713,1750686633872,-29116.81373292,0.000239,2]
[367171714,1750686633883,-1151.0,0.0002394,2]
[367171715,1750686633893,-2331.57699282,0.00024,2]
[367171716,1750686633906,-10106.9022,0.00024,2]
[367171717,1750686633918,-4376.27591605,0.00024,2]
[367171718,1750686633946,-1947.9743962,0.00024,2]
[367171719,1750686633958,-2425.38530858,0.00024,2]
[367171720,1750686633970,-506.09928263,0.00024,2]
[367171721,1750686633982,-308.79,0.00024,2]
[367171722,1750686634091,-1719.66903719,0.00024,2]
[367171723,1750686634103,-1440.199866,0.00024,2]
[367171724,1750686634115,-2896.07326788,0.00024,2]
[367171725,1750686634126,-982.5874323,0.00024,2]
[367171726,1750686634138,-1555.3552193,0.00024,2]
[367171727,1750686634150,-2330.24577903,0.00024,2]
[367171728,1750686634173,-546.49932388,0.00024,2]
[367171729,1750686634221,-2823.01952147,0.00024,2]
[367171731,1750686638351,-633.30302254,0.000234,9]
[367171732,1750686638361,-633.30302232,0.000234,9]
[367171733,1750686638370,-633.30302232,0.000234,9]
[367171734,1750686638379,-633.30302232,0.000234,9]
[367171736,1750686638658,-633.30302232,0.000234,9]
[367171737,1750686638668,-633.30302232,0.000234,9]
[367171738,1750686638678,-633.30302232,0.0002359,9]
[367171739,1750686638687,-363.81512792,0.00023746,2]
[367171740,1750686638697,-108.88416358,0.00024,2]
[367171741,1750686638716,-1022.5,0.00024,2]
[367171912,1750686640341,-978.31360321,0.00024,2]
[367171914,1750686640353,-2561.8454045,0.00024,2]
[367171916,1750686640364,-338.9068,0.00024,2]
[367171918,1750686640375,-3541.22269369,0.00024,2]
[367171921,1750686640403,-4551.04494673,0.00024,2]
[367171923,1750686640415,-310.14390868,0.00024,2]
[367171925,1750686640427,-1217.6518777,0.00024,2]
[367172212,1750686643685,-199.41831942,0.00019899,2]
[367172214,1750686643694,-108325.03770584,0.00024,2]
[367172216,1750686643704,-158.21,0.00024,2]
[367172218,1750686643714,-29116.81373291,0.00024034,2]
[367172220,1750686643723,-633.30302232,0.00024038,10]
[367172222,1750686643734,-1896.0,0.00024067,2]
[367172224,1750686643743,-151.0,0.00024098,2]
[367172226,1750686643753,-1144.0,0.000241,2]
[367172228,1750686643763,-29116.81373291,0.00024168,2]
[367172230,1750686643772,-282.26480287,0.00024207,2]
[367172232,1750686643781,-1106.0433427,0.00024248,2]
[367172234,1750686643791,-29116.81373291,0.00024302,2]
[367172236,1750686643800,-500.0,0.00024306,2]
[367172238,1750686643810,-500.0,0.00024306,2]
[367172240,1750686643819,-500.0,0.00024306,2]
[367172242,1750686643829,-311.46059264,0.00024306,2]
[367172244,1750686643841,-500.0,0.00024306,2]
[367172246,1750686643851,-500.0,0.00024306,2]
[367172248,1750686643860,-500.0,0.00024306,2]
[367172250,1750686643869,-500.0,0.00024306,2]
[367172252,1750686643878,-500.0,0.00024306,2]
[367172254,1750686643889,-500.0,0.00024306,2]
[367172256,1750686643899,-500.0,0.00024306,2]
[367172259,1750686643910,-396.54931469,0.00024306,2]
[367172261,1750686643918,-500.0,0.00024306,2]
[367172263,1750686643928,-500.0,0.00024306,2]
[367172265,1750686643937,-500.0,0.00024306,2]
[367172267,1750686643946,-500.0,0.00024306,2]
[367172269,1750686643956,-500.0,0.00024306,2]
[367172271,1750686643965,-500.0,0.00024306,2]
[367172273,1750686643974,-500.0,0.00024306,2]
[367172275,1750686643983,-500.0,0.00024306,2]
[367172277,1750686643993,-500.0,0.00024306,2]
[367172279,1750686644003,-500.0,0.00024306,2]
[367172281,1750686644012,-500.0,0.00024306,2]
[367172283,1750686644021,-500.0,0.00024306,2]
[367172285,1750686644031,-500.0,0.00024306,2]
[367172287,1750686644040,-500.0,0.00024306,2]
[367172289,1750686644050,-500.0,0.00024306,2]
[367172291,1750686644059,-500.0,0.00024306,2]
[367172293,1750686644068,-500.0,0.00024306,2]
[367172295,1750686644078,-523.65831764,0.00024306,2]
[367172297,1750686644087,-500.0,0.00024306,2]
[367172299,1750686644097,-500.0,0.00024306,2]
[367172301,1750686644106,-500.0,0.00024306,2]
[367172303,1750686644115,-500.0,0.00024306,2]
[367172305,1750686644125,-500.0,0.00024306,2]
[367172307,1750686644133,-500.0,0.00024306,2]
[367172309,1750686644143,-505.27650657,0.00024306,2]
[367172311,1750686644152,-500.0,0.00024306,2]
[367172313,1750686644162,-500.0,0.00024306,2]
[367172315,1750686644171,-500.0,0.00024306,2]
[367172317,1750686644180,-412.09277319,0.00024306,2]
[367172319,1750686644192,-500.0,0.00024306,2]
[367172321,1750686644201,-500.0,0.00024306,2]
[367172323,1750686644210,-500.0,0.00024306,2]
[367172325,1750686644220,-462.22233514,0.00024306,2]
[367172327,1750686644230,-500.0,0.00024306,2]
[367172329,1750686644239,-371.56721226,0.00024306,2]
[367172331,1750686644248,-500.0,0.00024306,2]
[367172333,1750686644258,-500.0,0.00024306,2]
[367172335,1750686644267,-500.0,0.00024306,2]
[367172337,1750686644277,-350.0,0.00024306,2]
[367172339,1750686644286,-166.78578167,0.00024306,2]
[367172341,1750686644295,-350.0,0.00024306,2]
[367172343,1750686644304,-3336.0,0.00024307,2]
[367172345,1750686644314,-947.0,0.00024307,2]
[367172347,1750686644323,-803.0,0.00024307,2]
[367172349,1750686644332,-638.0,0.00024307,2]
[367172351,1750686644343,-1161.0,0.00024307,2]
[367172353,1750686644353,-1279.0,0.00024307,2]
[367172355,1750686644362,-591.0,0.00024307,2]
[367172357,1750686644372,-929.0,0.00024307,2]
[367172359,1750686644381,-559.0,0.00024307,2]
[367172361,1750686644391,-2005.0,0.00024307,2]
[367172363,1750686644400,-1677.0,0.00024307,2]
[367172365,1750686644409,-4097.0,0.00024307,2]
[367172367,1750686644420,-7138.0,0.00024307,2]
[367172369,1750686644429,-156.0,0.00024307,2]
[367172371,1750686644439,-856.0,0.00024307,2]
[367172373,1750686644448,-885.0,0.00024307,2]
[367172375,1750686644458,-158.16678648,0.00024357,2]
[367172377,1750686644467,-166.77,0.0002439,2]
[367172379,1750686644477,-1046.095977,0.00024394,4]
[367172381,1750686644486,-206.09529396,0.00024425,2]
[367172383,1750686644496,-29116.81373291,0.00024436,2]
[367172385,1750686644506,-150.0,0.00024448,2]
[367172387,1750686644515,-633.30302232,0.00024486,11]
[367172389,1750686644524,-974.08266014,0.0002449,2]
[367172391,1750686644534,-520084.69471635,0.000245,2]
[367172393,1750686644544,-150.0,0.00024511,2]
[367172395,1750686644553,-150.0,0.00024521,2]
[367172397,1750686644562,-150.0,0.00024543,2]
[367172399,1750686644572,-282.26480281,0.0002455,2]
[367172401,1750686644581,-150.0,0.00024551,2]
[367172403,1750686644593,-1000.0,0.00024557,2]
[367172405,1750686644603,-240.61444232,0.00024557,2]
[367172407,1750686644613,-29116.81373291,0.00024569,2]
[367172409,1750686644623,-18955.53737295,0.00024618,2]
[367172411,1750686644634,-243.0,0.0002464,2]
[367172413,1750686644645,-151.0,0.00024646,2]
[367172415,1750686644655,-150.0,0.00024646,2]
[367172417,1750686644665,-775.02542211,0.00024647,2]
[367172419,1750686644674,-219.92441036,0.00024656,10]
[367172421,1750686644684,-666.0,0.00024656,2]
[367172423,1750686644693,-1164.0,0.00024657,2]
[367172425,1750686644702,-2463.37574427,0.00024657,2]
[367172427,1750686644712,-164.978307,0.00024657,2]
[367172429,1750686644721,-1272.631866,0.00024657,2]
[367172431,1750686644730,-5129.195806,0.00024657,2]
[367172433,1750686644740,-2276.065526,0.00024657,2]
[367172435,1750686644750,-153.552939,0.00024657,2]
[367172437,1750686644759,-490.0,0.00024657,2]
[367172439,1750686644769,-490.0,0.00024657,2]
[367172441,1750686644778,-490.0,0.00024657,2]
[367172443,1750686644788,-490.0,0.00024657,2]
[367172445,1750686644797,-490.0,0.00024657,2]
[367172447,1750686644806,-490.0,0.00024657,2]
[367172449,1750686644816,-430.89699591,0.00024657,2]
[367172451,1750686644826,-490.0,0.00024657,2]
[367172453,1750686644838,-490.0,0.00024657,2]
[367172455,1750686644848,-490.0,0.00024657,2]
[367172457,1750686644858,-490.0,0.00024657,2]
[367172459,1750686644868,-875.66,0.00024657,2]
[367172461,1750686644878,-490.0,0.00024657,2]
[367172463,1750686644888,-490.0,0.00024657,2]
[367172465,1750686644898,-742.63,0.00024657,2]
[367172467,1750686644908,-490.0,0.00024657,2]
[367172469,1750686644918,-490.0,0.00024657,2]
[367172471,1750686644928,-490.0,0.00024657,2]
[367172473,1750686644938,-490.0,0.00024657,2]
[367172475,1750686644947,-490.0,0.00024657,2]
[367172477,1750686644956,-633.53371046,0.00024657,2]
[367172479,1750686644966,-490.0,0.00024657,2]
[367172481,1750686644975,-711.54,0.00024657,2]
[367172483,1750686644985,-490.0,0.00024657,2]
[367172484,1750686644994,-490.0,0.00024657,2]
[367172486,1750686645004,-491.17326316,0.00024657,2]
[367172488,1750686645013,-490.0,0.00024657,2]
[367172491,1750686645023,-302.22022922,0.00024657,2]
[367172493,1750686645032,-490.0,0.00024657,2]
[367172494,1750686645041,-490.0,0.00024657,2]
[367172497,1750686645051,-490.0,0.00024657,2]
[367172498,1750686645061,-490.0,0.00024657,2]
[367172500,1750686645071,-279.11515349,0.00024657,2]
[367172502,1750686645081,-491.48965723,0.00024657,2]
[367172504,1750686645091,-490.0,0.00024657,2]
[367172506,1750686645100,-237.86148,0.00024657,2]
[367172533,1750686645355,-490.0,0.00024657,2]
[367172535,1750686645367,-205.46674997,0.00024657,2]
[367172538,1750686645376,-490.0,0.00024657,2]
[367172540,1750686645386,-490.90942997,0.00024657,2]
[367172542,1750686645397,-490.0,0.00024657,2]
[367172544,1750686645406,-151.476984,0.00024657,2]
[367172546,1750686645415,-491.35842212,0.00024657,2]
[367172548,1750686645424,-491.19150048,0.00024657,2]
[367172549,1750686645434,-514.28870565,0.00024657,2]
[367172551,1750686645443,-494.31772156,0.00024657,2]
[367172553,1750686645453,-466.15763954,0.00024657,2]
[367172555,1750686645462,-631.00995575,0.00024657,2]
[367172558,1750686645471,-254.1940832,0.00024657,2]
[367172559,1750686645481,-490.0,0.00024657,2]
[367172562,1750686645490,-490.0,0.00024657,2]
[367172564,1750686645505,-173.66185288,0.00024657,2]
[367172566,1750686645515,-490.0,0.00024657,2]
[367172568,1750686645524,-490.0,0.00024657,2]
[367172570,1750686645534,-492.27592114,0.00024657,2]
[367172572,1750686645543,-490.80881093,0.00024657,2]
[367172574,1750686645552,-490.0,0.00024657,2]
[367172576,1750686645562,-490.91832353,0.00024657,2]
[367172578,1750686645572,-490.0,0.00024657,2]
[367172579,1750686645582,-490.0,0.00024657,2]
[367172581,1750686645593,-490.0,0.00024657,2]
[367172583,1750686645603,-490.0,0.00024657,2]
[367172585,1750686645613,-493.98616642,0.00024657,2]
[367172587,1750686645622,-602.99,0.00024657,2]
[367172589,1750686645631,-491.48375932,0.00024657,2]
[367172591,1750686645640,-491.66256358,0.00024657,2]
[367172593,1750686645650,-493.72431453,0.00024657,2]
[367172595,1750686645659,-490.0,0.00024657,2]
[367172597,1750686645668,-490.0,0.00024657,2]
[367172599,1750686645677,-490.0,0.00024657,2]
[367172601,1750686645687,-492.80319814,0.00024657,2]
[367172603,1750686645696,-490.0,0.00024657,2]
[367172605,1750686645705,-490.86355183,0.00024657,2]
[367172607,1750686645715,-490.0,0.00024657,2]
[367172609,1750686645724,-490.0,0.00024657,2]
[367172611,1750686645734,-490.0,0.00024657,2]
[367172613,1750686645743,-218.0027816,0.00024657,2]
[367172615,1750686645753,-490.0,0.00024657,2]
[367172617,1750686645761,-490.0,0.00024657,2]
[367172619,1750686645771,-491.08935302,0.00024657,2]
[367172621,1750686645780,-490.0,0.00024657,2]
[367172623,1750686645789,-490.96248774,0.00024657,2]
[367172625,1750686645798,-879.71,0.00024657,2]
[367172627,1750686645807,-490.0,0.00024657,2]
[367172629,1750686645816,-492.63529423,0.00024657,2]
[367172630,1750686645825,-1092.22,0.00024657,2]
[367172632,1750686645834,-490.7767115,0.00024657,2]
[367172634,1750686645848,-491.34016227,0.00024657,2]
[367172636,1750686645857,-490.0,0.00024657,2]
[367172638,1750686645866,-500.0,0.00024657,2]
[367172641,1750686645876,-500.0,0.00024657,2]
[367172642,1750686645885,-490.43718967,0.00024657,2]
[367172644,1750686645895,-490.59168723,0.00024657,2]
[367172647,1750686645904,-492.62339299,0.00024657,2]
[367172648,1750686645913,-492.90567872,0.00024657,2]
[367172650,1750686645923,-490.0,0.00024657,2]
[367172652,1750686645932,-491.16291804,0.00024657,2]
[367172653,1750686645941,-623.52,0.00024657,2]
[367172654,1750686645950,-491.03315297,0.00024657,2]
[367172655,1750686645959,-490.60570141,0.00024657,2]
[367172656,1750686645968,-493.47421034,0.00024657,2]
[367172657,1750686645978,-490.0,0.00024657,2]
[367172658,1750686645987,-490.0,0.00024657,2]
[367172659,1750686645997,-555.36464732,0.00024657,2]
[367172660,1750686646006,-490.0,0.00024657,2]
[367172662,1750686646016,-431.12915393,0.00024657,2]
[367172664,1750686646025,-361.29693994,0.00024657,2]
[367172665,1750686646034,-492.60599633,0.00024657,2]
[367172667,1750686646043,-491.29579555,0.00024657,2]
[367172668,1750686646052,-831.02,0.00024657,2]
[367172669,1750686646062,-490.0,0.00024657,2]
[367172670,1750686646071,-490.0,0.00024657,2]
[367172671,1750686646080,-686.24,0.00024657,2]
[367172672,1750686646093,-490.0,0.00024657,2]
[367172674,1750686646102,-490.0,0.00024657,2]
[367172676,1750686646112,-490.0,0.00024657,2]
[367172678,1750686646122,-490.0,0.00024657,2]
[367172680,1750686646131,-497.34246046,0.00024657,2]
[367172682,1750686646140,-490.0,0.00024657,2]
[367172684,1750686646149,-490.0,0.00024657,2]
[367172686,1750686646160,-514.67,0.00024657,2]
[367172688,1750686646171,-490.0,0.00024657,2]
[367172690,1750686646180,-490.0,0.00024657,2]
[367172692,1750686646189,-610.19352075,0.00024657,2]
[367172694,1750686646198,-256.36859047,0.00024657,2]
[367172696,1750686646207,-550.8,0.00024657,2]
[367172698,1750686646217,-490.0,0.00024657,2]
[367172700,1750686646226,-545.4,0.00024657,2]
[367172702,1750686646247,-576.18822895,0.00024657,2]
[367172705,1750686646259,-490.0,0.00024657,2]
[367172707,1750686646268,-490.0,0.00024657,2]
[367172709,1750686646276,-561.64,0.00024657,2]
[367172711,1750686646285,-490.0,0.00024657,2]
[367172713,1750686646295,-490.0,0.00024657,2]
[367172716,1750686646304,-490.0,0.00024657,2]
[367172718,1750686646313,-490.0,0.00024657,2]
[367172720,1750686646322,-783.47,0.00024657,2]
[367172722,1750686646336,-490.0,0.00024657,2]
[367172724,1750686646349,-490.0,0.00024657,2]
[367172726,1750686646358,-490.0,0.00024657,2]
[367172727,1750686646368,-490.0,0.00024657,2]
[367172729,1750686646377,-490.0,0.00024657,2]
[367172731,1750686646386,-490.0,0.00024657,2]
[367172733,1750686646396,-549.1027622,0.00024657,2]
[367172735,1750686646406,-544.18928905,0.00024657,2]
[367172737,1750686646415,-674.97,0.00024657,2]
[367172739,1750686646425,-490.0,0.00024657,2]
[367172741,1750686646434,-490.0,0.00024657,2]
[367172743,1750686646444,-490.0,0.00024657,2]
[367172745,1750686646453,-447.70510549,0.00024657,2]
[367172747,1750686646463,-490.0,0.00024657,2]
[367172749,1750686646473,-490.0,0.00024657,2]
[367172751,1750686646482,-490.0,0.00024657,2]
[367172753,1750686646491,-490.0,0.00024657,2]
[367172755,1750686646501,-490.0,0.00024657,2]
[367172757,1750686646511,-500.0,0.00024657,2]
[367172760,1750686646522,-500.0,0.00024657,2]
[367172762,1750686646532,-500.0,0.00024657,2]
[367172763,1750686646541,-490.0,0.00024657,2]
[367172765,1750686646552,-500.0,0.00024657,2]
[367172767,1750686646562,-500.0,0.00024657,2]
[367172769,1750686646572,-490.0,0.00024657,2]
[367172771,1750686646583,-500.0,0.00024657,2]
[367172773,1750686646594,-500.0,0.00024657,2]
[367172775,1750686646604,-500.0,0.00024657,2]
[367172777,1750686646613,-500.0,0.00024657,2]
[367172779,1750686646623,-500.0,0.00024657,2]
[367172781,1750686646633,-500.0,0.00024657,2]
[367172783,1750686646642,-490.0,0.00024657,2]
[367172785,1750686646651,-490.0,0.00024657,2]
[367172787,1750686646661,-490.0,0.00024657,2]
[367172789,1750686646670,-490.0,0.00024657,2]
[367172791,1750686646680,-490.0,0.00024657,2]
[367172793,1750686646689,-490.0,0.00024657,2]
[367172795,1750686646699,-490.0,0.00024657,2]
[367172797,1750686646708,-744.88,0.00024657,2]
[367172799,1750686646718,-490.0,0.00024657,2]
[367172801,1750686646727,-490.0,0.00024657,2]
[367172803,1750686646737,-490.0,0.00024657,2]
[367172805,1750686646746,-490.0,0.00024657,2]
[367172807,1750686646755,-490.0,0.00024657,2]
[367172809,1750686646765,-490.0,0.00024657,2]
[367172811,1750686646775,-490.0,0.00024657,2]
[367172813,1750686646785,-490.0,0.00024657,2]
[367172816,1750686646795,-834.51,0.00024657,2]
[367172817,1750686646806,-490.0,0.00024657,2]
[367172819,1750686646815,-490.0,0.00024657,2]
[367172821,1750686646824,-490.0,0.00024657,2]
[367172823,1750686646833,-490.0,0.00024657,2]
[367172826,1750686646845,-490.0,0.00024657,2]
[367172828,1750686646855,-490.0,0.00024657,2]
[367172830,1750686646865,-490.0,0.00024657,2]
[367172831,1750686646874,-490.0,0.00024657,2]
[367172835,1750686646884,-490.0,0.00024657,2]
[367172838,1750686646893,-500.0,0.00024657,2]
[367172840,1750686646902,-738.61,0.00024657,2]
[367172844,1750686646912,-165.43527948,0.00024657,2]
[367172846,1750686646921,-490.0,0.00024657,2]
[367172849,1750686646931,-579.49286009,0.00024657,2]
[367172852,1750686646940,-490.0,0.00024657,2]
[367172853,1750686646950,-500.0,0.00024657,2]
[367172856,1750686646959,-500.0,0.00024657,2]
[367172858,1750686646969,-500.0,0.00024657,2]
[367172859,1750686646978,-500.0,0.00024657,2]
[367172861,1750686646988,-490.0,0.00024657,2]
[367172863,1750686646998,-490.0,0.00024657,2]
[367172865,1750686647007,-490.0,0.00024657,2]
[367172868,1750686647016,-1653.73,0.00024657,2]
[367172869,1750686647026,-490.0,0.00024657,2]
[367172872,1750686647035,-490.0,0.00024657,2]
[367172874,1750686647045,-666.15,0.00024657,2]
[367172875,1750686647054,-490.0,0.00024657,2]
[367172877,1750686647063,-490.0,0.00024657,2]
[367172880,1750686647074,-490.0,0.00024657,2]
[367172881,1750686647083,-626.78,0.00024657,2]
[367172883,1750686647094,-490.0,0.00024657,2]
[367172885,1750686647103,-490.0,0.00024657,2]
[367172888,1750686647113,-1350.56,0.00024657,2]
[367172889,1750686647122,-490.0,0.00024657,2]
[367172892,1750686647131,-490.0,0.00024657,2]
[367172894,1750686647141,-490.0,0.00024657,2]
[367172895,1750686647150,-490.0,0.00024657,2]
[367172897,1750686647159,-490.0,0.00024657,2]
[367172899,1750686647168,-492.2140073,0.00024657,2]
[367172901,1750686647178,-490.0,0.00024657,2]
[367172903,1750686647187,-490.0,0.00024657,2]
[367172905,1750686647196,-490.0,0.00024657,2]
[367172908,1750686647210,-490.0,0.00024657,2]
[367172910,1750686647219,-661.81,0.00024657,2]
[367172911,1750686647229,-490.0,0.00024657,2]
[367172912,1750686647239,-365.25958395,0.00024657,2]
[367172913,1750686647248,-637.96608693,0.00024657,2]
[367172914,1750686647258,-306.52973999,0.00024657,2]
[367172915,1750686647268,-490.0,0.00024657,2]
[367172916,1750686647281,-490.0,0.00024657,2]
[367172917,1750686647291,-490.0,0.00024657,2]
[367172918,1750686647300,-628.43755885,0.00024657,2]
[367172919,1750686647309,-490.0,0.00024657,2]
[367172920,1750686647319,-490.0,0.00024657,2]
[367172921,1750686647328,-490.0,0.00024657,2]
[367172922,1750686647345,-716.87,0.00024657,2]
[367172923,1750686647355,-490.0,0.00024657,2]
[367172924,1750686647364,-1186.68,0.00024657,2]
[367172925,1750686647373,-490.0,0.00024657,2]
[367172926,1750686647383,-498.16,0.00024657,2]
[367172927,1750686647392,-490.0,0.00024657,2]
[367172928,1750686647402,-490.0,0.00024657,2]
[367172929,1750686647412,-490.0,0.00024657,2]
[367172930,1750686647422,-490.0,0.00024657,2]
[367172931,1750686647432,-490.0,0.00024657,2]
[367172932,1750686647442,-490.0,0.00024657,2]
[367172934,1750686647453,-657.1,0.00024657,2]
[367172936,1750686647463,-490.0,0.00024657,2]
[367172938,1750686647473,-490.0,0.00024657,2]
[367172940,1750686647482,-490.46150417,0.00024657,2]
[367172942,1750686647492,-490.0,0.00024657,2]
[367172944,1750686647501,-871.68,0.00024657,2]
[367172946,1750686647511,-490.0,0.00024657,2]
[367172948,1750686647521,-490.0,0.00024657,2]
[367172950,1750686647531,-729.26,0.00024657,2]
[367172952,1750686647541,-490.0,0.00024657,2]
[367172953,1750686647550,-490.0,0.00024657,2]
[367172954,1750686647560,-490.0,0.00024657,2]
[367172955,1750686647570,-490.0,0.00024657,2]
[367172956,1750686647579,-1175.18,0.00024657,2]
[367172957,1750686647591,-490.0,0.00024657,2]
[367172958,1750686647603,-490.0,0.00024657,2]
[367172959,1750686647613,-490.0,0.00024657,2]
[367172960,1750686647623,-490.0,0.00024657,2]
[367172961,1750686647632,-490.0,0.00024657,2]
[367172962,1750686647642,-490.0,0.00024657,2]
[367172963,1750686647652,-378.60600572,0.00024657,2]
[367172964,1750686647661,-490.0,0.00024657,2]
[367172965,1750686647673,-490.0,0.00024657,2]
[367172966,1750686647683,-490.0,0.00024657,2]
[367172967,1750686647693,-490.0,0.00024657,2]
[367172968,1750686647703,-500.0,0.00024657,2]
[367172969,1750686647712,-490.0,0.00024657,2]
[367172970,1750686647721,-490.0,0.00024657,2]
[367172971,1750686647731,-730.3,0.00024657,2]
[367172972,1750686647741,-490.0,0.00024657,2]
[367172973,1750686647750,-490.0,0.00024657,2]
[367172974,1750686647760,-784.63,0.00024657,2]
[367172975,1750686647769,-798.29,0.00024657,2]
[367172976,1750686647779,-490.0,0.00024657,2]
[367172977,1750686647788,-555.33,0.00024657,2]
[367172978,1750686647798,-490.0,0.00024657,2]